[Event "XXVII RUS-chT Women 2020"]
[Site "Sochi"]
[Date "2020.11.19"]
[Round "1.1"]
[White "Getman, Tatyana"]
[Black "Pogonina, Natalija"]
[Result "0-1"]
[ECO "E32"]
[WhiteElo "2303"]
[BlackElo "2475"]
[Annotator "ChessBase"]
[PlyCount "172"]
[EventDate "2020.11.19"]
[EventType "team-tourn"]
[EventCountry "RUS"]
[SourceTitle "playchess.com"]
[Source "ChessBase"]
[SourceQuality "1"]
[TimeControl "40/5400+30:1800+30"]

1. d4 {[%emt 0:00:00]} Nf6 {[%emt 0:00:00]} 2. c4 {[%emt 0:00:00]} e6 {[%emt 0:00:00]} 3. Nc3 {[%emt 0:00:00]} Bb4 {[%emt 0:00:00]} 4. Qc2 {[%emt 0:00:06]} O-O {[%emt 0:01:08]} 5. e4 {[%emt 0:00:36]} d6 {[%emt 0:03:18]} 6. Bd3 {[%emt 0:00:32]} e5 {[%emt 0:00:07]} 7. d5 {[%emt 0:01:19]} Nbd7 {[%emt 0:06:11]} 8. Nge2 {[%emt 0:03:40]} c6 {[%emt 0:20:51]} 9. O-O {[%emt 0:06:11]} h6 {[%emt 0:13:10]} 10. Ng3 {[%emt 0:08:42]} Re8 {[%emt 0:01:50]} 11. a3 {[%emt 0:10:27]} Ba5 {[%emt 0:02:59]} 12. b4 {[%emt 0:03:48]} Bc7 {[%emt 0:04:47]} 13. f3 {[%emt 0:07:42]} Bb6+ {[%emt 0:03:29]} 14. Kh1 {[%emt 0:01:36]} Nf8 {[%emt 0:00:08]} 15. Rd1 {[%emt 0:04:55]} Ng6 {[%emt 0:03:53]} 16. Nce2 {[%emt 0:02:30]} c5 {[%emt 0:02:41]} 17. Nf5 {[%emt 0:09:41]} Bxf5 {[%emt 0:12:26]} 18. exf5 {[%emt 0:00:08]} Nf8 {[%emt 0:00:03]} 19. Be4 {[%emt 0:02:12]} cxb4 {[%emt 0:01:24]} 20. axb4 {[%emt 0:00:20]} Rc8 {[%emt 0:00:12]} 21. Bd2 {[%emt 0:04:26]} N8d7 {[%emt 0:00:43]} 22. Rdc1 {[%emt 0:03:31]} a6 {[%emt 0:06:07]} 23. Ra3 {[%emt 0:05:07]} Ba7 {[%emt 0:00:51]} 24. Qd3 {[%emt 0:01:10]} Nxe4 {[%emt 0:03:34]} 25. fxe4 {[%emt 0:00:27]} Qh4 {[%emt 0:00:14]} 26. g3 {[%emt 0:03:11]} Qh3 {[%emt 0:04:04]} 27. Be3 {[%emt 0:06:25]} Bxe3 {[%emt 0:00:55]} 28. Qxe3 {[%emt 0:00:01]} Qg4 {[%emt 0:01:09]} 29. Qd3 {[%emt 0:04:14]} Nf6 {[%emt 0:01:17]} 30. Nc3 {[%emt 0:00:06]} b5 {[%emt 0:02:42]} 31. Rxa6 {[%emt 0:03:14]} Rxc4 {[%emt 0:00:47]} 32. Re1 {[%emt 0:00:40]} Rxb4 {[%emt 0:01:55]} 33. Rb6 {[%emt 0:05:16]} Rc8 {[%emt 0:01:39]} 34. Rc6 {[%emt 0:00:35]} Ra8 {[%emt 0:00:13]} 35. Qe2 {[%emt 0:02:33]} Qxe2 {[%emt 0:01:37]} 36. Rxe2 {[%emt 0:00:02]} Rb3 {[%emt 0:00:18]} 37. Kg2 {[%emt 0:00:42]} Ra1 {[%emt 0:00:59]} 38. Rc2 {[%emt 0:01:13]} Ng4 {[%emt 0:00:40]} 39. Re2 {[%emt 0:00:35]} h5 {[%emt 0:00:35]} 40. Rc8+ {[%emt 0:00:00]} Kh7 {[%emt 0:00:00]} 41. Rc6 {[%emt 0:03:42]} Nf6 {[%emt 0:11:14]} 42. Rc2 {[%emt 0:08:45]} Raa3 {[%emt 0:01:19]} 43. Rc7 {[%emt 0:01:26]} Ng4 {[%emt 0:02:40]} 44. Nd1 {[%emt 0:09:28]} Rd3 {[%emt 0:12:59]} 45. Nf2 {[%emt 0:01:52]} Ne3+ {[%emt 0:00:07]} 46. Kh3 {[%emt 0:00:08]} Nxc2 {[%emt 0:00:21]} 47. Nxd3 {[%emt 0:00:08]} Ne3 {[%emt 0:01:40]} 48. Ne1 {[%emt 0:03:21]} f6 {[%emt 0:01:37]} 49. Nc2 {[%emt 0:01:16]} Nxc2 {[%emt 0:01:58]} 50. Rxc2 {[%emt 0:00:02]} Re3 {[%emt 0:01:04]} 51. Rc6 {[%emt 0:00:37]} Rxe4 {[%emt 0:00:04]} 52. Rxd6 {[%emt 0:00:03]} Rd4 {[%emt 0:00:07]} 53. Kg2 {[%emt 0:00:57]} Rd2+ {[%emt 0:00:33]} 54. Kg1 {[%emt 0:01:09]} h4 {[%emt 0:00:22]} 55. gxh4 {[%emt 0:00:20]} b4 {[%emt 0:01:03]} 56. Rb6 {[%emt 0:00:46]} Rxd5 {[%emt 0:01:02]} 57. Rxb4 {[%emt 0:00:07]} Rd4 {[%emt 0:00:32]} 58. Rb3 {[%emt 0:00:52]} Rxh4 {[%emt 0:00:05]} 59. Rg3 {[%emt 0:01:01]} Rh5 {[%emt 0:01:04]} 60. Rf3 {[%emt 0:00:04]} Kh6 {[%emt 0:00:24]} 61. Kh1 {[%emt 0:00:42]} Rh4 {[%emt 0:00:40]} 62. Rg3 {[%emt 0:00:17]} Kh7 {[%emt 0:00:20]} 63. Kg2 {[%emt 0:00:15]} Rf4 {[%emt 0:00:40]} 64. Rh3+ {[%emt 0:00:06]} Kg8 {[%emt 0:00:03]} 65. Rh5 {[%emt 0:00:08]} Rg4+ {[%emt 0:00:43]} 66. Kf3 {[%emt 0:00:12]} Rg1 {[%emt 0:00:04]} 67. Kf2 {[%emt 0:01:09]} Rd1 {[%emt 0:00:15]} 68. Ke2 {[%emt 0:01:00]} Rd4 {[%emt 0:00:04]} 69. Kf3 {[%emt 0:00:28]} Kf7 {[%emt 0:00:08]} 70. Kg3 {[%emt 0:00:30]} Rf4 {[%emt 0:00:07]} 71. h3 {[%emt 0:00:43]} Kg8 {[%emt 0:01:00]} 72. Kg2 {[%emt 0:00:13]} g6 {[%emt 0:00:46]} 73. fxg6 {[%emt 0:00:44]} Kg7 {[%emt 0:00:03]} 74. Rh7+ {[%emt 0:00:34]} Kxg6 {[%emt 0:00:04]} 75. Ra7 {[%emt 0:00:36]} e4 {[%emt 0:01:09]} 76. Re7 {[%emt 0:02:47]} f5 {[%emt 0:00:11]} 77. Re8 {[%emt 0:00:27]} Rf3 {[%emt 0:00:33]} 78. h4 {[%emt 0:00:56]} Kh5 {[%emt 0:00:07]} 79. Rh8+ {[%emt 0:00:08]} Kg4 {[%emt 0:00:05]} 80. h5 {[%emt 0:00:26]} Rg3+ {[%emt 0:01:51]} 81. Kf2 {[%emt 0:00:42]} e3+ {[%emt 0:01:44]} 82. Ke2 {[%emt 0:00:23]} f4 {[%emt 0:00:35]} 83. h6 {[%emt 0:00:45]} Rg2+ {[%emt 0:00:07]} 84. Kf1 {[%emt 0:00:53]} Kf3 {[%emt 0:00:15]} 85. Re8 {[%emt 0:01:32]} e2+ {[%emt 0:00:13]} 86. Ke1 {[%emt 0:00:08]} Rg1+ {[%emt 0:00:04]} 0-1

[Event "XXVII RUS-chT Women 2020"]
[Site "Sochi"]
[Date "2020.11.19"]
[Round "1.2"]
[White "Girya, Olga"]
[Black "Nazarova, Anastasia"]
[Result "1-0"]
[ECO "D41"]
[WhiteElo "2469"]
[BlackElo "2190"]
[Annotator "ChessBase"]
[PlyCount "173"]
[EventDate "2020.11.19"]
[EventType "team-tourn"]
[EventCountry "RUS"]
[SourceTitle "playchess.com"]
[Source "ChessBase"]
[SourceQuality "1"]
[TimeControl "40/5400+30:1800+30"]

1. d4 {[%emt 0:00:00]} Nf6 {[%emt 0:00:00]} 2. c4 {[%emt 0:00:00]} e6 {[%emt 0:00:00]} 3. Nf3 {[%emt 0:00:00]} d5 {[%emt 0:00:00]} 4. Nc3 {[%emt 0:00:00]} c5 {[%emt 0:00:00]} 5. cxd5 {[%emt 0:01:24]} Nxd5 {[%emt 0:00:02]} 6. e4 {[%emt 0:02:54]} Nxc3 {[%emt 0:00:07]} 7. bxc3 {[%emt 0:00:03]} cxd4 {[%emt 0:00:06]} 8. cxd4 {[%emt 0:00:03]} Bb4+ {[%emt 0:00:05]} 9. Bd2 {[%emt 0:00:04]} Bxd2+ {[%emt 0:00:15]} 10. Qxd2 {[%emt 0:00:05]} O-O {[%emt 0:00:17]} 11. Bc4 {[%emt 0:04:11]} b6 {[%emt 0:05:04]} 12. d5 {[%emt 0:07:50]} Ba6 {[%emt 0:18:49]} 13. Bxa6 {[%emt 0:00:17]} Nxa6 {[%emt 0:00:07]} 14. O-O {[%emt 0:20:36]} Nc5 {[%emt 0:05:24]} 15. Rfe1 {[%emt 0:01:08]} exd5 {[%emt 0:24:48]} 16. exd5 {[%emt 0:00:06]} Qd6 {[%emt 0:02:47]} 17. Rad1 {[%emt 0:08:14]} Rfe8 {[%emt 0:08:21]} 18. Qd4 {[%emt 0:01:32]} Nd7 {[%emt 0:14:03]} 19. Rxe8+ {[%emt 0:01:42]} Rxe8 {[%emt 0:00:08]} 20. Qa4 {[%emt 0:01:19]} Rc8 {[%emt 0:10:35]} 21. h3 {[%emt 0:03:41]} a5 {[%emt 0:02:03]} 22. Nd4 {[%emt 0:04:28]} Qxd5 {[%emt 0:05:58]} 23. Nb5 {[%emt 0:13:22]} Nc5 {[%emt 0:01:07]} 24. Qc2 {[%emt 0:05:58]} Qe6 {[%emt 0:00:36]} 25. Nc7 {[%emt 0:09:44]} Qe5 {[%emt 0:00:22]} 26. Nd5 {[%emt 0:00:47]} Qe6 {[%emt 0:00:56]} 27. Qd2 {[%emt 0:02:51]} Kf8 {[%emt 0:00:50]} 28. Qc2 {[%emt 0:09:21]} Rd8 {[%emt 0:00:35]} 29. Ne3 {[%emt 0:01:25]} Rxd1+ {[%emt 0:00:07]} 30. Qxd1 {[%emt 0:00:02]} Qd7 {[%emt 0:00:28]} 31. Qb1 {[%emt 0:00:11]} h6 {[%emt 0:00:57]} 32. Qxb6 {[%emt 0:00:11]} Nb7 {[%emt 0:00:16]} 33. a4 {[%emt 0:01:34]} g6 {[%emt 0:00:29]} 34. h4 {[%emt 0:00:32]} h5 {[%emt 0:00:25]} 35. g3 {[%emt 0:00:10]} Kg7 {[%emt 0:00:24]} 36. Kg2 {[%emt 0:00:28]} Kg8 {[%emt 0:00:22]} 37. Kh2 {[%emt 0:00:45]} Kg7 {[%emt 0:00:33]} 38. Qb2+ {[%emt 0:00:21]} Kg8 {[%emt 0:00:26]} 39. Qe5 {[%emt 0:00:44]} Qd6 {[%emt 0:01:02]} 40. Qb5 {[%emt 0:00:00]} Qc7 {[%emt 0:00:00]} 41. Nd5 {[%emt 0:08:13]} Qb8 {[%emt 0:17:28]} 42. Nf6+ {[%emt 0:02:56]} Kg7 {[%emt 0:01:00]} 43. Qb2 {[%emt 0:05:30]} Kh6 {[%emt 0:01:22]} 44. Qd2+ {[%emt 0:01:04]} Kg7 {[%emt 0:00:10]} 45. Qg5 {[%emt 0:02:17]} Qa7 {[%emt 0:04:23]} 46. Kg2 {[%emt 0:05:34]} Qc5 {[%emt 0:02:33]} 47. Nxh5+ {[%emt 0:00:48]} Kf8 {[%emt 0:00:08]} 48. Qh6+ {[%emt 0:00:20]} Ke7 {[%emt 0:00:15]} 49. Nf4 {[%emt 0:00:28]} Nd6 {[%emt 0:04:57]} 50. Qg7 {[%emt 0:01:18]} Qc6+ {[%emt 0:01:01]} 51. Kh2 {[%emt 0:00:11]} Qe4 {[%emt 0:01:59]} 52. Qc3 {[%emt 0:03:19]} Nc4 {[%emt 0:00:28]} 53. f3 {[%emt 0:04:28]} Qc6 {[%emt 0:00:14]} 54. Qc2 {[%emt 0:00:42]} Ne5 {[%emt 0:01:15]} 55. Qxc6 {[%emt 0:00:17]} Nxc6 {[%emt 0:00:04]} 56. g4 {[%emt 0:00:17]} Ne5 {[%emt 0:00:30]} 57. Kg3 {[%emt 0:00:05]} Nd7 {[%emt 0:00:12]} 58. Ne2 {[%emt 0:01:27]} Nc5 {[%emt 0:00:46]} 59. Nc3 {[%emt 0:00:08]} Nd3 {[%emt 0:00:59]} 60. f4 {[%emt 0:00:59]} f5 {[%emt 0:00:39]} 61. gxf5 {[%emt 0:00:58]} gxf5 {[%emt 0:00:04]} 62. h5 {[%emt 0:00:47]} Kf7 {[%emt 0:00:35]} 63. Kf3 {[%emt 0:00:37]} Kg7 {[%emt 0:00:59]} 64. Ke3 {[%emt 0:00:09]} Nb4 {[%emt 0:00:27]} 65. Kd4 {[%emt 0:00:13]} Kh6 {[%emt 0:00:25]} 66. Ke5 {[%emt 0:00:14]} Kxh5 {[%emt 0:00:06]} 67. Kxf5 {[%emt 0:00:03]} Nd3 {[%emt 0:00:59]} 68. Ke4 {[%emt 0:00:24]} Nc5+ {[%emt 0:00:24]} 69. Kd4 {[%emt 0:00:18]} Nb3+ {[%emt 0:00:13]} 70. Ke5 {[%emt 0:01:59]} Kg6 {[%emt 0:00:21]} 71. Ne4 {[%emt 0:00:11]} Kg7 {[%emt 0:00:50]} 72. f5 {[%emt 0:00:16]} Nc1 {[%emt 0:00:31]} 73. f6+ {[%emt 0:01:15]} Kf8 {[%emt 0:00:04]} 74. Ke6 {[%emt 0:00:25]} Nd3 {[%emt 0:00:14]} 75. Kf5 {[%emt 0:00:32]} Kf7 {[%emt 0:01:06]} 76. Nd6+ {[%emt 0:00:04]} Kf8 {[%emt 0:00:06]} 77. Nb7 {[%emt 0:00:14]} Kf7 {[%emt 0:01:02]} 78. Nd8+ {[%emt 0:00:52]} Kf8 {[%emt 0:00:23]} 79. Nb7 {[%emt 0:00:50]} Kf7 {[%emt 0:00:08]} 80. Nxa5 {[%emt 0:00:16]} Nc5 {[%emt 0:00:13]} 81. Nc6 {[%emt 0:00:17]} Nxa4 {[%emt 0:00:18]} 82. Nd8+ {[%emt 0:00:41]} Kf8 {[%emt 0:01:14]} 83. Ne6+ {[%emt 0:00:39]} Kf7 {[%emt 0:00:09]} 84. Ng5+ {[%emt 0:00:31]} Kf8 {[%emt 0:00:33]} 85. Kg6 {[%emt 0:00:10]} Nc5 {[%emt 0:00:43]} 86. Nh7+ {[%emt 0:00:06]} Ke8 {[%emt 0:00:08]} 87. f7+ {[%emt 0:00:04]} 1-0

[Event "XXVII RUS-chT Women 2020"]
[Site "Sochi"]
[Date "2020.11.19"]
[Round "1.3"]
[White "Pogorelskikh, Sofia"]
[Black "Badelka, Olga"]
[Result "0-1"]
[ECO "C11"]
[WhiteElo "2128"]
[BlackElo "2427"]
[Annotator "ChessBase"]
[PlyCount "128"]
[EventDate "2020.11.19"]
[EventType "team-tourn"]
[EventCountry "RUS"]
[SourceTitle "playchess.com"]
[Source "ChessBase"]
[SourceQuality "1"]
[TimeControl "40/5400+30:1800+30"]

1. e4 {[%emt 0:00:00]} e6 {[%emt 0:00:00]} 2. d4 {[%emt 0:00:00]} d5 {[%emt 0:00:00]} 3. Nc3 {[%emt 0:00:00]} Nf6 {[%emt 0:00:00]} 4. Bg5 {[%emt 0:00:02]} dxe4 {[%emt 0:00:17]} 5. Nxe4 {[%emt 0:00:12]} Be7 {[%emt 0:00:23]} 6. Bxf6 {[%emt 0:00:58]} gxf6 {[%emt 0:00:15]} 7. Qd2 {[%emt 0:06:39]} e5 {[%emt 0:07:37]} 8. dxe5 {[%emt 0:08:18]} Qxd2+ {[%emt 0:00:43]} 9. Nxd2 {[%emt 0:01:16]} fxe5 {[%emt 0:00:08]} 10. Ngf3 {[%emt 0:02:29]} f6 {[%emt 0:03:22]} 11. Bd3 {[%emt 0:03:03]} Nc6 {[%emt 0:06:57]} 12. Nh4 {[%emt 0:05:46]} Be6 {[%emt 0:07:24]} 13. Nf5 {[%emt 0:04:39]} Bf8 {[%emt 0:03:30]} 14. Nf1 {[%emt 0:03:55]} O-O-O {[%emt 0:03:43]} 15. Be4 {[%emt 0:03:23]} h5 {[%emt 0:14:16]} 16. h4 {[%emt 0:05:48]} Bc5 {[%emt 0:00:46]} 17. N1e3 {[%emt 0:01:41]} Rhg8 {[%emt 0:04:39]} 18. g3 {[%emt 0:20:58]} Kb8 {[%emt 0:12:58]} 19. a3 {[%emt 0:08:07]} Nd4 {[%emt 0:04:12]} 20. Rd1 {[%emt 0:03:11]} a5 {[%emt 0:02:29]} 21. c3 {[%emt 0:09:17]} Nxf5 {[%emt 0:02:53]} 22. Rxd8+ {[%emt 0:00:11]} Rxd8 {[%emt 0:00:03]} 23. Nxf5 {[%emt 0:00:20]} Bf7 {[%emt 0:10:52]} 24. Ne3 {[%emt 0:02:17]} Bxe3 {[%emt 0:08:11]} 25. fxe3 {[%emt 0:00:06]} Rg8 {[%emt 0:00:16]} 26. Kf2 {[%emt 0:00:53]} Be6 {[%emt 0:02:30]} 27. Rd1 {[%emt 0:03:06]} Bg4 {[%emt 0:00:40]} 28. Bf3 {[%emt 0:00:52]} Kc8 {[%emt 0:00:16]} 29. Bxg4+ {[%emt 0:02:48]} Rxg4 {[%emt 0:00:04]} 30. Kg2 {[%emt 0:00:24]} Rg6 {[%emt 0:01:19]} 31. Rf1 {[%emt 0:01:02]} Kd7 {[%emt 0:00:29]} 32. Rf5 {[%emt 0:00:26]} Rh6 {[%emt 0:00:04]} 33. a4 {[%emt 0:02:07]} Ke6 {[%emt 0:00:05]} 34. e4 {[%emt 0:00:22]} Rh7 {[%emt 0:01:24]} 35. Kf2 {[%emt 0:00:44]} Kf7 {[%emt 0:00:57]} 36. Ke3 {[%emt 0:00:30]} Kg6 {[%emt 0:00:50]} 37. Rf1 {[%emt 0:00:40]} Rd7 {[%emt 0:00:08]} 38. Ke2 {[%emt 0:01:08]} Rd6 {[%emt 0:02:20]} 39. Ke3 {[%emt 0:00:28]} c5 {[%emt 0:00:21]} 40. b3 {[%emt 0:00:00]} Rb6 {[%emt 0:00:00]} 41. Rb1 {[%emt 0:02:22]} f5 {[%emt 0:03:51]} 42. c4 {[%emt 0:04:13]} Kf6 {[%emt 0:03:33]} 43. Rb2 {[%emt 0:00:48]} Ke6 {[%emt 0:00:50]} 44. Rb1 {[%emt 0:00:51]} fxe4 {[%emt 0:00:56]} 45. Kxe4 {[%emt 0:00:32]} Rd6 {[%emt 0:00:06]} 46. Rf1 {[%emt 0:00:44]} Rd4+ {[%emt 0:04:35]} 47. Ke3 {[%emt 0:00:09]} Rg4 {[%emt 0:01:33]} 48. Rg1 {[%emt 0:01:47]} b6 {[%emt 0:04:22]} 49. Ke2 {[%emt 0:05:42]} Kf5 {[%emt 0:10:47]} 50. Rf1+ {[%emt 0:00:41]} Ke4 {[%emt 0:00:20]} 51. Rf3 {[%emt 0:01:20]} Rg6 {[%emt 0:00:16]} 52. Re3+ {[%emt 0:01:18]} Kf5 {[%emt 0:00:09]} 53. Rf3+ {[%emt 0:01:19]} Kg4 {[%emt 0:00:08]} 54. Re3 {[%emt 0:02:56]} Re6 {[%emt 0:00:49]} 55. Kf2 {[%emt 0:00:48]} e4 {[%emt 0:00:17]} 56. Kg2 {[%emt 0:01:45]} Kf5 {[%emt 0:01:10]} 57. Re1 {[%emt 0:02:28]} Rd6 {[%emt 0:00:07]} 58. Rf1+ {[%emt 0:01:49]} Ke5 {[%emt 0:00:04]} 59. g4 {[%emt 0:00:24]} hxg4 {[%emt 0:00:16]} 60. h5 {[%emt 0:00:57]} e3 {[%emt 0:03:45]} 61. Rh1 {[%emt 0:00:27]} Kf4 {[%emt 0:00:13]} 62. Rf1+ {[%emt 0:00:21]} Ke4 {[%emt 0:00:27]} 63. Rh1 {[%emt 0:00:17]} e2 {[%emt 0:01:00]} 64. Kf2 {[%emt 0:00:08]} Rd1 {[%emt 0:00:38]} 0-1

[Event "XXVII RUS-chT Women 2020"]
[Site "Sochi"]
[Date "2020.11.19"]
[Round "1.4"]
[White "Guseva, Marina"]
[Black "Yurasova, Daria"]
[Result "1-0"]
[ECO "D31"]
[WhiteElo "2352"]
[BlackElo "2075"]
[Annotator "NA"]
[PlyCount "115"]
[EventDate "2020.11.19"]
[EventType "team-tourn"]
[EventCountry "RUS"]
[SourceTitle "playchess.com"]
[Source "ChessBase"]
[SourceQuality "1"]
[TimeControl "40/5400+30:1800+30"]

1. d4 {[%emt 0:00:00]} e6 {[%emt 0:00:00]} 2. c4 {[%emt 0:00:00]} d5 {[%emt 0:00:00]} 3. Nc3 {[%emt 0:00:00]} Be7 {[%emt 0:00:08]} 4. cxd5 {[%emt 0:00:00]} exd5 {[%emt 0:00:11]} 5. Bf4 {[%emt 0:00:00]} Nf6 {[%emt 0:00:17]} 6. e3 {[%emt 0:00:00]} O-O {[%emt 0:00:38]} 7. Bd3 {[%emt 0:00:00]} c5 {[%emt 0:00:43]} 8. dxc5 {[%emt 0:02:32]} Bxc5 {[%emt 0:00:24]} 9. Nge2 {[%emt 0:00:32]} Nc6 {[%emt 0:00:16]} 10. O-O {[%emt 0:00:06]} Bg4 {[%emt 0:16:19]} 11. h3 {[%emt 0:03:26]} Bh5 {[%emt 0:00:29]} 12. Rc1 {[%emt 0:15:14]} a6 {[%emt 0:10:58]} 13. g4 {[%emt 0:03:14]} Bg6 {[%emt 0:02:45]} 14. Bxg6 {[%emt 0:00:09]} hxg6 $16 {[%emt 0:00:18]} 15. Nxd5 {[%emt 0:01:21]} Ba7 {[%emt 0:09:02]} 16. Nec3 {[%emt 0:03:58]} Nxd5 {[%emt 0:03:18]} 17. Nxd5 {[%emt 0:00:42]} Qa5 {[%emt 0:04:57]} 18. Qb3 {[%emt 0:00:54]} Bb8 {[%emt 0:22:34]} 19. Qxb7 {[%emt 0:17:03]} Bxf4 {[%emt 0:03:44]} 20. Qxc6 {[%emt 0:00:17]} Bg5 {[%emt 0:03:20]} 21. Nc7 {[%emt 0:02:22]} Rfc8 {[%emt 0:04:23]} 22. Rc5 {[%emt 0:01:27]} Qxa2 {[%emt 0:00:21]} 23. Rxg5 {[%emt 0:05:19]} Ra7 {[%emt 0:00:30]} 24. Qd5 {[%emt 0:00:23]} Qxb2 {[%emt 0:05:56]} 25. Ne6 {[%emt 0:04:05]} Kh7 {[%emt 0:01:20]} 26. Nd4 {[%emt 0:03:18]} a5 {[%emt 0:04:18]} 27. Qb5 {[%emt 0:05:47]} Qa2 {[%emt 0:01:02]} 28. Rc5 {[%emt 0:00:30]} Rca8 {[%emt 0:00:17]} 29. Rfc1 {[%emt 0:03:33]} a4 {[%emt 0:00:39]} 30. Nc6 {[%emt 0:01:38]} Rd7 {[%emt 0:00:49]} 31. Nd4 {[%emt 0:02:46]} Rda7 {[%emt 0:00:09]} 32. R5c2 {[%emt 0:00:18]} Qa3 {[%emt 0:00:09]} 33. Qg5 {[%emt 0:00:06]} Qf8 {[%emt 0:00:34]} 34. Ra2 {[%emt 0:01:54]} Ra5 {[%emt 0:00:45]} 35. Qf4 {[%emt 0:00:42]} a3 {[%emt 0:01:56]} 36. Rc7 {[%emt 0:00:38]} Rb8 {[%emt 0:01:05]} 37. Rxf7 {[%emt 0:03:46]} Rb1+ {[%emt 0:00:21]} 38. Kg2 {[%emt 0:01:18]} Qa8+ {[%emt 0:00:06]} 39. Qf3 {[%emt 0:01:23]} Qa6 {[%emt 0:00:46]} 40. Rc7 {[%emt 0:00:00]} Qf1+ {[%emt 0:00:00]} 41. Kg3 {[%emt 0:09:06]} Qg1+ {[%emt 0:04:01]} 42. Qg2 {[%emt 0:01:14]} Qd1 {[%emt 0:01:37]} 43. Rcc2 {[%emt 0:07:44]} Qd3 {[%emt 0:01:22]} 44. Kh2 {[%emt 0:02:37]} Qd1 {[%emt 0:00:46]} 45. Rd2 {[%emt 0:02:00]} Qa4 {[%emt 0:01:26]} 46. Qg3 {[%emt 0:02:13]} Qb4 {[%emt 0:01:04]} 47. Qh4+ {[%emt 0:03:19]} Kg8 {[%emt 0:00:10]} 48. Nc6 {[%emt 0:00:40]} Qb7 {[%emt 0:02:11]} 49. Qd8+ {[%emt 0:01:07]} Kh7 {[%emt 0:01:12]} 50. Qxa5 {[%emt 0:00:18]} Qxc6 {[%emt 0:00:04]} 51. Qd5 {[%emt 0:00:10]} Qc7+ {[%emt 0:00:05]} 52. Kg2 {[%emt 0:00:41]} Qc1 {[%emt 0:00:08]} 53. Kg3 {[%emt 0:00:30]} Qc7+ {[%emt 0:00:06]} 54. f4 {[%emt 0:08:34]} Qc3 {[%emt 0:00:05]} 55. Qd3 {[%emt 0:03:16]} Rg1+ {[%emt 0:00:14]} 56. Kh4 {[%emt 0:02:58]} Qf6+ {[%emt 0:00:37]} 57. g5 {[%emt 0:00:04]} Qc6 {[%emt 0:00:30]} 58. f5 {[%emt 0:01:48]} 1-0

[Event "XXVII RUS-chT Women 2020"]
[Site "Sochi"]
[Date "2020.11.19"]
[Round "1.5"]
[White "Shuvalova, Polina"]
[Black "Afonasieva, Anna"]
[Result "1-0"]
[ECO "B10"]
[WhiteElo "2454"]
[BlackElo "2316"]
[Annotator "ChessBase"]
[PlyCount "89"]
[EventDate "2020.11.19"]
[EventType "team-tourn"]
[EventCountry "RUS"]
[SourceTitle "playchess.com"]
[Source "ChessBase"]
[SourceQuality "1"]
[TimeControl "40/5400+30:1800+30"]

1. e4 {[%emt 0:00:00]} c6 {[%emt 0:00:00]} 2. Nf3 {[%emt 0:00:00]} d5 {[%emt 0:00:00]} 3. exd5 {[%emt 0:00:00]} cxd5 {[%emt 0:00:00]} 4. Ne5 {[%emt 0:00:00]} Nf6 {[%emt 0:03:02]} 5. d4 {[%emt 0:00:00]} a6 {[%emt 0:04:49]} 6. c3 {[%emt 0:02:48]} Bf5 {[%emt 0:02:31]} 7. Nd2 {[%emt 0:08:20]} Nbd7 {[%emt 0:02:30]} 8. Be2 {[%emt 0:04:47]} h6 {[%emt 0:04:33]} 9. Ndf3 {[%emt 0:05:28]} e6 {[%emt 0:00:46]} 10. Bf4 {[%emt 0:00:38]} Be7 {[%emt 0:01:00]} 11. Qb3 {[%emt 0:01:18]} Qc8 {[%emt 0:02:46]} 12. O-O {[%emt 0:00:26]} O-O {[%emt 0:00:26]} 13. Rfc1 {[%emt 0:03:08]} Nxe5 {[%emt 0:16:22]} 14. Nxe5 {[%emt 0:00:39]} Ne4 {[%emt 0:00:40]} 15. c4 {[%emt 0:04:09]} dxc4 {[%emt 0:02:36]} 16. Nxc4 {[%emt 0:02:23]} Qd8 {[%emt 0:11:20]} 17. Nb6 {[%emt 0:00:31]} g5 {[%emt 0:03:15]} 18. Be3 {[%emt 0:07:53]} Rb8 {[%emt 0:01:51]} 19. d5 {[%emt 0:07:22]} e5 {[%emt 0:01:23]} 20. g4 {[%emt 0:04:03]} Bg6 {[%emt 0:04:06]} 21. Bd3 {[%emt 0:02:05]} Bd6 {[%emt 0:07:40]} 22. Qc2 {[%emt 0:02:44]} Nc5 {[%emt 0:02:21]} 23. Bxg6 {[%emt 0:01:47]} Qxb6 {[%emt 0:00:10]} 24. Bf5 {[%emt 0:00:22]} Rbc8 {[%emt 0:05:45]} 25. Bxc8 {[%emt 0:00:10]} Rxc8 {[%emt 0:00:05]} 26. Qf5 {[%emt 0:00:31]} Rc7 {[%emt 0:04:27]} 27. Qf6 {[%emt 0:01:00]} Kh7 {[%emt 0:09:21]} 28. Rxc5 {[%emt 0:03:41]} Rxc5 {[%emt 0:02:06]} 29. Qxf7+ {[%emt 0:00:05]} Kh8 {[%emt 0:00:05]} 30. Qf6+ {[%emt 0:00:10]} Kh7 {[%emt 0:00:22]} 31. Bxc5 {[%emt 0:00:05]} Qxc5 {[%emt 0:00:45]} 32. Qf7+ {[%emt 0:00:03]} Kh8 {[%emt 0:00:08]} 33. Rd1 {[%emt 0:01:47]} Qc2 {[%emt 0:03:56]} 34. Qf6+ {[%emt 0:00:33]} Kg8 {[%emt 0:02:27]} 35. Re1 {[%emt 0:00:20]} Bc5 {[%emt 0:01:52]} 36. Qe6+ {[%emt 0:02:12]} Kf8 {[%emt 0:01:24]} 37. Qxh6+ {[%emt 0:00:16]} Ke8 {[%emt 0:00:59]} 38. Rxe5+ {[%emt 0:00:52]} Kd8 {[%emt 0:00:19]} 39. Qxg5+ {[%emt 0:02:20]} Kc7 {[%emt 0:00:04]} 40. Qf4 {[%emt 0:00:00]} Kb6 {[%emt 0:00:00]} 41. b4 {[%emt 0:07:01]} Bd6 {[%emt 0:01:58]} 42. Qd4+ {[%emt 0:00:09]} Kb5 {[%emt 0:00:29]} 43. Re6 {[%emt 0:00:10]} Qc7 {[%emt 0:01:40]} 44. h4 {[%emt 0:01:37]} Bxb4 {[%emt 0:00:35]} 45. d6 {[%emt 0:00:17]} 1-0